bitfinex/quotes_SOLUSD_20240729
["timestamp","ask_amount","ask_price","bid_price","bid_amount"]
[1722249419952,20.0,192.06,191.97,8.03340903]
[1722249420153,20.0,192.06,191.97,0.203363]
[1722249420464,20.0,192.06,191.98,0.17]
[1722249421252,6.4551,192.07,191.98,0.17]
[1722249421952,6.4551,192.07,191.97,0.203363]
[1722249422151,10.6202,192.07,191.97,0.203363]
[1722249422353,6.4551,192.07,191.98,0.17]
[1722249423165,6.4551,192.07,191.98,0.34]
[1722249423870,6.4551,192.07,191.98,0.17]
[1722249424185,4.1652,192.07,191.98,0.17]
[1722249424478,20.0,192.07,191.98,0.34]
[1722249425470,20.0,192.07,191.98,8.16900302]
[1722249425676,20.0,192.07,191.99,45.0]
[1722249425880,20.0,192.07,192.0,0.17]
[1722249426269,20.7609,192.08,192.0,0.17]
[1722249426575,20.0,192.07,192.0,0.17]
[1722249426980,6.6658,192.11,192.0,0.17]
[1722249427157,6.6658,192.11,192.0,1.2115051]
[1722249427358,10.8302,192.11,192.0,9.03794186]
[1722249428183,10.8302,192.11,192.0,7.99643676]
[1722249428368,20.0,192.1,192.0,7.99714589]
[1722249428880,20.0,192.1,192.01,7.82714589]
[1722249429465,24.1645,192.1,192.01,7.82714589]
[1722249430157,6.6658,192.11,192.01,7.82714589]
[1722249430389,6.6658,192.11,192.0,0.17]
[1722249430390,16.3504,192.12,192.03,7.82714589]
[1722249430578,0.90780417,192.14,192.04,0.17]
[1722249430883,0.90780417,192.14,192.04,45.34]
[1722249431279,0.90780417,192.14,192.04,53.16714589]
[1722249431488,32.6426,192.15,192.04,45.34]
[1722249431661,4.164,192.12,192.04,45.34]
[1722249431862,4.164,192.12,192.04,0.17]
[1722249432189,4.164,192.12,192.03,15.5546]
[1722249432688,20.0,192.14,192.03,15.5546]
[1722249432890,20.0,192.14,192.04,0.17]
[1722249433373,24.1636,192.14,192.04,0.17]
[1722249433569,20.0,192.14,192.04,0.17]
[1722249434266,24.1636,192.14,192.04,0.17]
[1722249434500,20.0,192.14,192.04,0.17]
[1722249434860,20.0,192.14,192.04,45.34]
[1722249435162,13.04,192.11,192.04,58.38]
[1722249435377,13.04,192.1,192.04,45.34]
[1722249435570,13.04,192.1,192.04,66.20457799]
[1722249435765,16.06180849,192.16,192.06,13.04]
[1722249435766,0.90780849,192.16,192.06,13.04]
[1722249435978,0.90780849,192.16,192.07,45.17]
[1722249435979,13.04,192.13,192.07,45.17]
[1722249437377,13.04,192.12,192.07,45.17]
[1722249437691,13.04,192.12,192.07,0.17]
[1722249437886,13.04,192.12,192.07,0.34]
[1722249439770,13.04,192.12,192.07,0.17]
[1722249440008,13.04,192.08,192.04,7.82184687]
[1722249440492,13.04,192.09,192.03,23.37644687]
[1722249440797,13.04,192.09,192.04,7.82184687]
[1722249441164,13.04,192.09,192.03,15.5546]
[1722249441390,13.04,192.09,192.04,45.17]
[1722249442176,13.04,192.1,192.04,45.17]
[1722249442577,13.04,192.1,192.04,52.99402196]
[1722249442779,13.04,192.11,192.04,58.21]
[1722249443101,13.04,192.1,192.04,45.17]
[1722249444293,3012.07910973,192.0,191.98,7.82404001]
[1722249444513,3012.07910973,192.0,191.99,13.04]
[1722249445581,3010.51938563,192.0,191.99,13.04]
[1722249446309,3010.51938563,192.0,191.99,13.38]
[1722249447195,3010.51938563,192.0,191.99,29.9549]
[1722249448112,2946.95163995,192.0,191.99,87.07]
[1722249448318,2944.02067825,192.0,191.99,87.07]
[1722249448610,2942.45567825,192.0,191.99,87.07]
[1722249448982,2940.88992998,192.0,191.99,87.07]
[1722249449289,2939.32492998,192.0,191.99,87.07]
[1722249449489,2937.75992998,192.0,191.99,87.07]
[1722249449900,2936.19418171,192.0,191.99,87.07]
[1722249450284,2934.62843344,192.0,191.99,71.42]
[1722249450487,2933.06268517,192.0,191.99,71.42]
[1722249450794,2933.06268517,192.0,191.99,13.38]
[1722249451599,2899.03268517,192.0,191.99,126.19]
[1722249451802,2893.99268517,192.0,191.99,126.19]
[1722249452107,2892.4270186,192.0,191.99,126.19]
[1722249452304,2890.8620186,192.0,191.99,134.01321117]
[1722249452498,2890.8620186,192.0,191.99,126.19]
[1722249452683,2889.2970186,192.0,191.99,126.19]
[1722249453003,2882.2970186,192.0,191.99,126.19]
[1722249454205,2882.2970186,192.0,191.99,74.03]
[1722249454709,2880.7320186,192.0,191.99,74.03]
[1722249454911,2880.7320186,192.0,191.99,87.07]
[1722249457904,2871.6520186,192.0,191.99,87.07]
[1722249458111,2832.0870186,192.0,191.99,87.07]
[1722249459209,2809.7070186,192.0,191.99,87.07]
[1722249459601,2784.7070186,192.0,191.99,87.07]
[1722249460109,2783.14142687,192.0,191.99,87.07]
[1722249460409,2781.58142687,192.0,191.99,126.19]
[1722249460591,2780.0156786,192.0,191.99,126.19]
[1722249460791,2778.44993033,192.0,191.99,126.19]
[1722249461004,2752.44993033,192.0,191.99,126.19]
[1722249461304,2750.88418206,192.0,191.99,126.19]
[1722249461617,2623.12843379,191.99,191.98,26.9227]
[1722249461803,2621.56268552,191.99,191.98,26.9227]
[1722249462116,2619.99693725,191.99,191.98,26.9227]
[1722249462420,2618.43118898,191.99,191.98,26.9227]
[1722249462609,2616.86544071,191.99,191.98,26.9227]
[1722249462803,2615.29969244,191.99,191.98,26.9227]
[1722249463116,2613.73394417,191.99,191.98,26.9227]
[1722249463292,2612.1681959,191.99,191.98,26.9227]
[1722249463487,2610.60252933,191.99,191.98,27.0927]
[1722249463693,2610.60252933,191.99,191.98,27.2627]
[1722249464002,2609.03686276,191.99,191.98,27.2627]
[1722249464203,2607.47119619,191.99,191.98,27.2627]
[1722249464605,2605.97119619,191.99,191.98,27.2627]
[1722249464801,2605.97119619,191.99,191.98,70.754]
[1722249465010,2604.47119619,191.99,191.98,70.754]
[1722249465209,2604.47119619,191.99,191.98,29.03]
[1722249465408,2602.97119619,191.99,191.98,29.03]
[1722249465619,2602.97119619,191.99,191.98,13.38]
[1722249465923,2601.47119619,191.99,191.98,13.38]
[1722249466125,2598.97119619,191.99,191.98,13.38]
[1722249466296,2597.40552962,191.99,191.98,13.38]
[1722249466820,2595.90552962,191.99,191.98,13.38]
[1722249466999,2594.33993789,191.99,191.98,21.20331724]
[1722249467200,2590.93093789,191.99,191.98,13.38]
[1722249467590,2589.36593789,191.99,191.98,13.38]
[1722249467794,2587.80093789,191.99,191.98,13.38]
[1722249468211,2586.23593789,191.99,191.98,13.38]
[1722249468609,2584.67034616,191.99,191.98,13.38]
[1722249468826,2583.10475443,191.99,191.98,13.38]
[1722249469122,2581.5391627,191.99,191.98,13.38]
[1722249469313,2568.8091627,191.99,191.98,13.38]
[1722249469515,2567.24357097,191.99,191.98,13.38]
[1722249469727,2565.6778227,191.99,191.98,13.38]
[1722249470217,2564.11207443,191.99,191.98,13.38]
[1722249470416,2556.24632616,191.99,191.98,13.38]
[1722249470721,2554.68057789,191.99,191.98,13.38]
[1722249470899,2553.11482962,191.99,191.98,13.38]
[1722249471217,16.349,192.08,191.97,15.853363]
[1722249471218,2539.73482962,191.98,191.97,15.853363]
[1722249471418,2538.16908135,191.98,191.97,15.853363]
[1722249471626,2533.70408135,191.98,191.97,28.893363]
[1722249472729,2532.13908135,191.98,191.97,34.107363]
[1722249472931,2530.57408135,191.98,191.97,34.107363]
[1722249473227,2529.00908135,191.98,191.97,34.447363]
[1722249473542,2527.44348962,191.98,191.97,34.447363]
[1722249473709,2525.87848962,191.98,191.97,34.447363]
[1722249474115,2524.31289789,191.98,191.97,34.447363]
[1722249474431,2522.74730616,191.98,191.97,34.447363]
[1722249474623,2521.18171443,191.98,191.97,34.447363]
[1722249474930,2519.61671443,191.98,191.97,34.447363]
[1722249475432,2518.05171443,191.98,191.97,34.447363]
[1722249475615,2516.4861227,191.98,191.97,34.447363]
[1722249476022,2514.9861227,191.98,191.97,34.447363]
[1722249476229,2513.42053097,191.98,191.97,34.447363]
[1722249478723,2513.42053097,191.98,191.97,13.583363]
[1722249479324,2511.85553097,191.98,191.97,13.583363]
[1722249482826,2469.11886499,191.95,191.94,6.1597]
[1722249483027,2387.11886499,191.95,191.94,24.4137]
[1722249483230,2385.55386499,191.95,191.94,24.4137]
[1722249483422,2385.55386499,191.95,191.94,26.4582664]
[1722249483623,2383.98819842,191.95,191.94,26.4582664]
[1722249483923,2382.48819842,191.95,191.94,26.4582664]
[1722249484122,2377.59219842,191.95,191.94,26.4582664]
[1722249484425,2374.02719842,191.95,191.94,26.4582664]
[1722249484619,2372.46153185,191.95,191.94,26.4582664]
[1722249484832,2370.89653185,191.95,191.94,26.4582664]
[1722249485057,2370.89653185,191.95,191.94,26.7982664]
[1722249485240,2369.33153185,191.95,191.94,26.7982664]
[1722249485453,2367.76653185,191.95,191.94,26.7982664]
[1722249485629,2285.76653185,191.95,191.94,26.7982664]
[1722249485830,2284.20153185,191.95,191.94,26.7982664]
[1722249486246,2276.53653185,191.95,191.94,26.7982664]
[1722249486628,2274.97102181,191.95,191.94,26.7982664]
[1722249486844,2273.40602181,191.95,191.94,26.7982664]
[1722249487053,2263.56802181,191.95,191.94,42.4482664]
[1722249487432,2262.00251177,191.95,191.94,42.4482664]
[1722249487634,2262.00251177,191.95,191.94,36.2885664]
[1722249487946,2260.43700173,191.95,191.94,42.0419169]
[1722249488251,2254.38749169,191.95,191.94,42.0419169]
[1722249488442,2252.82249169,191.95,191.94,42.0419169]
[1722249488825,2247.42998165,191.95,191.94,42.0419169]
[1722249489026,2245.86431508,191.95,191.94,42.0419169]
[1722249489526,2244.29864851,191.95,191.94,42.0419169]
[1722249489726,2242.73298194,191.95,191.94,42.0419169]
[1722249489947,2241.16731537,192.0,191.94,42.0419169]
[1722249490250,2241.16731537,192.0,191.99,20.8632835]
[1722249490422,2241.16731537,192.0,191.99,21.2032835]
[1722249491061,2241.16731537,192.0,191.99,13.38]
[1722249493152,2200.42231537,192.0,191.99,13.38]
[1722249493535,2200.42231537,192.0,191.99,0.34]
[1722249493728,2200.42231537,192.0,191.99,13.38]
[1722249495046,2200.42231537,192.0,191.97,13.04]
[1722249495648,2200.42231537,192.0,191.94,7.2585664]
[1722249495839,45.0,191.99,191.97,7.82911629]
[1722249496037,45.0,191.99,191.96,7.82911629]
[1722249496250,15.1407,191.98,191.96,7.82911629]
[1722249496442,45.0,191.97,191.95,7.82911629]
[1722249496642,45.0,191.97,191.94,7.82911629]
[1722249496956,45.0,191.97,191.93,7.82911629]
[1722249497130,45.0,191.97,191.93,20.86911629]
[1722249497454,45.0,191.97,191.93,13.04]
[1722249498953,6.2688,191.96,191.92,8.00018284]
[1722249499252,6.2688,191.96,191.93,0.17]
[1722249499864,6.2688,191.96,191.92,0.34]
[1722249501359,45.0,191.95,191.92,0.34]
[1722249501559,45.0,191.95,191.89,2.03766694]
[1722249501560,15.7345,191.94,191.89,2.03766694]
[1722249501850,15.7345,191.94,191.86,13.4653015]
[1722249501851,6.2262,191.92,191.86,13.4653015]
[1722249502031,6.2262,191.92,191.86,15.54639077]
[1722249502233,45.0,191.91,191.86,2.50639077]
[1722249502635,15.8566,191.9,191.86,0.4253015]
[1722249502855,45.0,191.89,191.86,0.4253015]
[1722249507165,45.0,191.89,191.86,13.4653015]
[1722249509060,15.8566,191.9,191.86,13.4653015]
[1722249509236,15.8566,191.9,191.87,0.34]
[1722249512453,45.0,191.89,191.87,0.17]
[1722249514474,15.8566,191.9,191.87,0.17]
[1722249516454,15.8566,191.9,191.87,0.05605319]
[1722249516658,15.8566,191.9,191.86,13.4653015]
[1722249521463,15.8566,191.9,191.87,13.04]
[1722249521778,15.8566,191.9,191.86,0.4253015]
[1722249522089,45.0,191.89,191.86,0.4253015]
[1722249524472,45.0,191.89,191.86,13.4653015]
[1722249524773,45.0,191.89,191.86,0.4253015]
[1722249537385,2184.85115962,191.8,191.76,5.42671934]
[1722249537593,2183.28415963,191.8,191.79,13.04]
[1722249537769,2183.28415963,191.8,191.79,13.38]
[1722249537974,2181.67968325,191.8,191.79,13.38]
[1722249538188,2180.11968325,191.8,191.79,13.38]
[1722249538559,2178.55268325,191.8,191.79,13.38]
[1722249538869,2176.98568325,191.8,191.79,13.38]
[1722249539285,2175.34768325,191.8,191.79,13.38]
[1722249539665,2173.78168325,191.8,191.79,13.38]
[1722249540079,2172.41268325,191.8,191.79,13.38]
[1722249540278,2170.64968325,191.8,191.79,13.38]
[1722249540591,2169.08270148,191.8,191.79,13.38]
[1722249540787,2167.51571971,191.8,191.79,13.38]
[1722249541168,2165.94971971,191.8,191.79,13.38]
[1722249541583,2164.38371971,191.8,191.79,13.38]
[1722249541983,2162.81771971,191.8,191.79,13.38]
[1722249542581,2161.25171971,191.8,191.79,13.38]
[1722249542883,2159.68571971,191.8,191.79,13.38]
[1722249543191,2158.11881978,191.8,191.79,13.38]
[1722249543377,2158.11881978,191.8,191.79,21.21503957]
[1722249543695,2156.55281978,191.8,191.79,21.21503957]
[1722249544099,2154.98681978,191.8,191.79,21.21503957]
[1722249544275,2153.41991985,191.8,191.79,21.21503957]
[1722249544679,2151.85301992,191.8,191.79,21.21503957]
[1722249544997,2150.28611999,191.8,191.79,21.21503957]
[1722249545293,2148.71922006,191.8,191.79,13.38]
[1722249545781,2147.15232013,191.8,191.79,13.38]
[1722249546090,2145.58533836,191.8,191.79,13.38]
[1722249546472,2144.01835659,191.8,191.79,13.38]
[1722249546671,2142.45137482,191.8,191.79,13.38]
[1722249547090,2140.8843939,191.8,191.79,13.38]
[1722249547581,2139.3174129,191.8,191.79,13.38]
[1722249547784,2137.7504319,191.8,191.79,13.38]
[1722249548291,2136.1834509,191.8,191.79,13.38]
[1722249548498,2130.01934999,191.8,191.79,13.38]
[1722249548795,2128.45236822,191.8,191.79,13.38]
[1722249548998,2128.45236822,191.8,191.76,7.50929996]
[1722249549196,2126.88538645,191.8,191.79,13.04]
[1722249549698,2126.88538645,191.8,191.76,2.08258062]
[1722249549994,2126.88538645,191.8,191.79,13.04]
[1722249550895,2126.88538645,191.8,191.79,13.21]
[1722249553199,2111.94426805,191.8,191.79,13.21]
[1722249553409,2111.94426805,191.8,191.79,13.38]
[1722249554787,914.00845245,191.5,191.49,46.59829218]
[1722249555002,845.33648581,191.5,191.49,212.84151147]
[1722249555212,714.8020636,191.5,191.49,210.86922854]
[1722249555383,652.99178803,191.5,191.49,211.85291804]
[1722249555584,551.90505516,191.5,191.49,219.18460011]
[1722249555806,490.24502581,191.5,191.49,249.89069475]
[1722249556001,408.96122581,191.5,191.49,249.89069475]
[1722249556301,282.93520702,191.5,191.49,219.89069475]
[1722249556505,244.35220702,191.5,191.49,276.92196596]
[1722249556684,167.43082142,191.5,191.49,276.92196596]
[1722249556880,77.96406537,191.5,191.49,250.41687633]
[1722249557096,18.25416537,191.5,191.49,277.83118863]
[1722249557300,13.04,191.72,191.58,15.68]
[1722249557507,21.3752,191.77,191.66,13.04]
[1722249557691,13.04,191.75,191.67,13.82658952]
[1722249557893,13.04,191.76,191.69,13.04]
[1722249558302,21.3752,191.77,191.71,0.6068]
[1722249558482,13.04,191.74,191.71,0.6068]
[1722249559101,13.04,191.75,191.71,0.6068]
[1722249559299,21.3752,191.77,191.71,0.6068]
[1722249559614,47.03,191.93,191.66,42.2550046]
[1722249559800,48.33325557,191.93,191.67,50.62433835]
[1722249560406,32.65325557,191.93,191.68,5.214]
[1722249560607,47.03,191.94,191.69,50.62433835]
[1722249560812,47.03,191.94,191.69,5.45433835]
[1722249560983,47.03,191.94,191.7,0.17]
[1722249561308,31.35,191.92,191.7,5.57662166]
[1722249561506,32.65319646,191.92,191.7,5.57662166]
[1722249561706,31.35,191.9,191.7,5.57662166]
[1722249562091,31.35,191.88,191.7,5.57662166]
[1722249562317,31.35,191.86,191.7,5.57662166]
[1722249562500,47.7104,191.84,191.7,5.57662166]
[1722249562702,47.7104,191.84,191.71,0.17]
[1722249562887,31.35,191.82,191.71,0.17]
[1722249563284,45.0,191.81,191.71,0.17]
[1722249563507,31.35,191.8,191.71,0.17]
[1722249564997,31.35,191.79,191.71,0.17]
[1722249565903,31.35,191.83,191.71,0.17]
[1722249566318,31.35,191.81,191.71,0.17]
[1722249573512,16.3604,191.84,191.71,0.17]
[1722249573722,16.3604,191.84,191.71,45.17]
[1722249573928,47.7104,191.84,191.72,0.17]
[1722249574817,76.35,191.83,191.72,0.17]
[1722249575819,16.3604,191.84,191.72,0.17]
[1722249576027,16.3604,191.84,191.73,6.9822]
[1722249576224,16.3604,191.84,191.74,0.34]
[1722249576605,31.35,191.88,191.74,0.34]
[1722249576822,31.35,191.88,191.74,70.554]
[1722249577008,31.35,191.88,191.74,75.83833835]
[1722249577223,31.35,191.88,191.77,7.83551286]
[1722249577416,16.0696,191.89,191.78,0.34]
[1722249577724,16.0696,191.89,191.78,8.17551286]
[1722249578306,16.0696,191.89,191.78,8.17526624]
[1722249581714,16.0696,191.89,191.78,8.17515788]
[1722249581910,259.8,191.96,191.78,8.17515788]
[1722249581911,31.35,191.94,191.8,6.4026]
[1722249582107,16.0202,191.95,191.81,8.00515788]
[1722249582108,31.35,191.93,191.81,8.00515788]
[1722249582303,31.35,191.93,191.82,8.00515788]
[1722249582503,31.35,191.93,191.83,0.17]
[1722249582931,31.35,191.93,191.83,8.00515788]
[1722249583108,31.35,191.94,191.84,0.17]
[1722249583300,45.0,191.93,191.84,0.17]
[1722249584608,45.0,191.93,191.83,0.34]
[1722249585828,31.35,191.94,191.83,0.34]
[1722249586227,45.0,191.93,191.83,0.34]
[1722249586401,45.0,191.93,191.84,0.34]
[1722249586598,76.35,191.93,191.82,0.34]
[1722249587213,76.35,191.93,191.81,0.34]
[1722249588311,76.35,191.93,191.81,8.17388374]
[1722249589022,76.35,191.93,191.81,0.34]
[1722249595709,31.35,191.9,191.75,7.83423239]
[1722249596044,31.35,191.9,191.71,6.9822]
[1722249596045,31.35,191.88,191.71,14.81643239]
[1722249596220,1.30344364,191.87,191.71,14.81643239]
[1722249596423,31.35,191.84,191.71,14.81643239]
[1722249596632,31.35,191.82,191.71,6.9822]
[1722249596811,45.0,191.81,191.71,9.56360526]
[1722249597826,45.0,191.81,191.72,0.34]
[1722249599814,76.35,191.81,191.72,0.34]
[1722249600932,76.35,191.81,191.71,9.56360526]
[1722249602210,76.35,191.81,191.72,0.34]
[1722249605133,32.65337349,191.84,191.72,0.34]
[1722249605328,76.35,191.83,191.72,0.34]
[1722249606738,76.35,191.83,191.73,7.83727118]
[1722249606917,76.35,191.83,191.74,0.34]
[1722249607738,76.35,191.83,191.73,0.34]
[1722249608241,76.35,191.83,191.72,8.17694343]
[1722249608831,76.35,191.83,191.72,7.83694343]
[1722249609032,1.3033725,191.82,191.72,7.83694343]
[1722249609361,1.3033725,191.82,191.71,9.56360526]
[1722249609362,1.30352999,191.82,191.71,17.40054869]
[1722249609532,76.35,191.83,191.71,17.40054869]
[1722249609728,76.35,191.83,191.71,9.56360526]
[1722249610958,76.35,191.83,191.72,0.34]
[1722249612318,77.65366594,191.83,191.72,0.34]
[1722249612520,1.30375436,191.82,191.71,2.58140526]
[1722249612743,77.65377916,191.83,191.69,7.83779625]
[1722249612926,76.35,191.83,191.69,7.83779625]
[1722249613242,76.35,191.83,191.66,6.9822]
[1722249613450,76.35,191.83,191.68,7.83837508]
[1722249613451,1.30377977,191.82,191.68,7.83837508]
[1722249613651,1.30377977,191.82,191.68,7.8384706]
[1722249613945,1.30377977,191.82,191.69,0.34]
[1722249614620,1.30377977,191.82,191.68,7.8384706]
[1722249614846,1.30377977,191.82,191.66,23.53188896]
[1722249615020,76.35,191.83,191.66,23.53188896]
[1722249615223,31.35,191.81,191.66,15.69341836]
[1722249615548,31.35,191.79,191.66,15.69341836]
[1722249615734,31.35,191.77,191.66,10.2853149]
[1722249616232,31.35,191.77,191.67,0.34]
[1722249616417,31.35,191.75,191.66,3.3031149]
[1722249616620,1.30404901,191.74,191.65,7.83945957]
[1722249616849,31.35,191.73,191.64,7.83945957]
[1722249617039,31.35,191.73,191.64,11.01903248]
[1722249617224,45.0,191.72,191.64,11.01903248]
[1722249617945,45.0,191.72,191.65,0.34]
[1722249618255,6.4888,191.78,191.65,0.34]
[1722249618256,31.35,191.77,191.65,0.34]
[1722249618427,31.35,191.75,191.65,0.34]
[1722249618752,31.35,191.73,191.65,0.34]
[1722249619051,45.0,191.74,191.64,3.17957291]
[1722249619052,31.35,191.71,191.64,3.17957291]
[1722249619349,31.35,191.69,191.59,13.24927532]
[1722249619520,31.35,191.69,191.6,7.84132851]
[1722249619722,76.35,191.68,191.59,13.25114426]
[1722249619944,76.35,191.68,191.59,5.40981575]
[1722249621048,76.35,191.68,191.6,0.34]
[1722249627357,6.2039,191.71,191.6,0.34]
[1722249627549,6.2039,191.71,191.6,5.567]
[1722249628242,46.6892,191.72,191.6,5.567]
[1722249628439,31.35,191.75,191.6,5.567]
[1722249628624,31.35,191.75,191.61,5.227]
[1722249628828,31.35,191.75,191.62,0.34]
[1722249629636,31.35,191.75,191.61,0.34]
[1722249629842,6.6288,191.76,191.61,0.34]
[1722249629843,76.35,191.74,191.61,0.34]
[1722249630634,76.35,191.74,191.61,5.567]
[1722249631331,45.0,191.74,191.61,0.34]
[1722249631541,76.35,191.75,191.62,13.3096]
[1722249631855,76.35,191.75,191.63,0.34]
[1722249642846,76.35,191.75,191.6,5.40721903]
[1722249643048,77.65428382,191.75,191.6,13.24956124]
[1722249643250,77.65428382,191.75,191.59,11.11965671]
[1722249643552,76.35,191.75,191.59,7.84234221]
[1722249643959,76.35,191.75,191.58,17.07682012]
[1722249644342,77.65445331,191.75,191.59,0.34]
[1722249644664,76.35,191.75,191.59,0.34]
[1722249645173,76.35,191.75,191.59,8.18305786]
[1722249645352,76.35,191.75,191.59,0.34]
[1722249646674,31.35,191.73,191.59,0.34]
[1722249646965,31.35,191.71,191.59,0.34]
[1722249647169,31.35,191.69,191.59,0.34]
[1722249647366,31.35,191.67,191.59,0.34]
[1722249647868,45.0,191.66,191.59,0.34]
[1722249648772,76.35,191.66,191.59,0.34]
[1722249650204,15.5817,191.74,191.59,0.34]
[1722249650474,31.35,191.73,191.59,8.18312076]
[1722249651779,31.35,191.71,191.6,7.84312076]
[1722249651954,45.0,191.7,191.61,0.34]
[1722249652564,76.35,191.7,191.61,0.34]
[1722249652961,76.35,191.7,191.62,0.34]
[1722249653150,76.35,191.7,191.6,0.34]
[1722249653557,76.35,191.7,191.6,8.18225408]
[1722249655551,76.35,191.7,191.6,8.18248084]
[1722249658669,76.35,191.7,191.6,8.18293225]
[1722249660481,76.35,191.7,191.61,7.84293225]
[1722249660674,76.35,191.7,191.62,0.34]
[1722249662959,76.35,191.7,191.62,8.18284775]
[1722249664176,76.35,191.7,191.62,8.18257941]
[1722249664887,31.35,191.73,191.63,7.84257941]
[1722249665087,31.35,191.73,191.64,0.34]
[1722249665274,31.35,191.73,191.64,8.18257941]
[1722249665477,31.35,191.73,191.65,7.84257941]
[1722249665777,31.35,191.73,191.66,0.17]
[1722249665975,31.35,191.73,191.64,8.18257941]
[1722249666774,31.35,191.71,191.64,8.18257941]
[1722249667065,45.0,191.7,191.64,8.18257941]
[1722249667270,45.0,191.7,191.64,0.34]
[1722249667477,45.0,191.7,191.64,8.18191307]
[1722249667674,31.35,191.73,191.64,0.34]
[1722249667875,31.35,191.73,191.64,8.18191307]
[1722249668391,31.35,191.73,191.64,0.34]
[1722249668569,31.35,191.73,191.63,0.34]
[1722249668994,31.35,191.73,191.63,25.567]
[1722249669395,31.35,191.75,191.63,25.567]
[1722249669900,31.35,191.73,191.63,20.34]
[1722249671300,45.0,191.72,191.63,20.34]
[1722249671494,76.35,191.72,191.63,20.34]
[1722249671697,31.35,191.72,191.64,7.84105591]
[1722249671868,31.35,191.72,191.65,20.34]
[1722249672495,31.35,191.75,191.65,20.34]
[1722249672675,31.35,191.73,191.65,20.34]
[1722249672870,31.35,191.73,191.62,6.9822]
[1722249672871,31.35,191.71,191.63,10.94056149]
[1722249673195,31.35,191.69,191.63,3.09950558]
[1722249673376,31.35,191.69,191.63,20.0]
[1722249673974,31.35,191.71,191.63,20.0]
[1722249674173,31.35,191.71,191.63,27.84105591]
[1722249674785,31.35,191.71,191.64,0.34]
[1722249675295,31.35,191.71,191.7,13.09]
[1722249675494,76.35,191.71,191.7,13.09]
[1722249676195,76.35,191.71,191.64,0.34]
[1722249676395,31.35,191.69,191.67,13.09]
[1722249677787,31.35,191.69,191.63,7.84183277]
[1722249677991,31.35,191.67,191.63,7.84183277]
[1722249678302,31.35,191.67,191.66,13.09]
[1722249679089,31.35,191.69,191.66,13.09]
[1722249679292,45.0,191.68,191.63,7.8424786]
[1722249679506,45.0,191.68,191.67,13.09]
[1722249679882,76.35,191.68,191.67,13.09]
[1722249683196,31.35,191.71,191.67,13.09]
[1722249683394,31.35,191.71,191.69,13.09]
[1722249683599,31.35,191.71,191.68,13.09]
[1722249684313,31.35,191.71,191.69,13.09]
[1722249684515,76.35,191.7,191.69,13.09]
[1722249685789,76.35,191.7,191.66,13.09]
[1722249686413,76.35,191.7,191.64,7.84230657]
[1722249686710,76.35,191.7,191.66,13.09]
[1722249687111,76.35,191.7,191.63,7.84230657]
[1722249687301,82.5076,191.7,191.66,13.09]
[1722249687495,83.81203665,191.7,191.63,7.84230657]
[1722249687718,82.5076,191.7,191.64,13.09]
[1722249688001,31.35,191.68,191.62,13.09]
[1722249688314,31.35,191.66,191.62,13.09]
[1722249688812,31.35,191.64,191.62,13.09]
[1722249688990,76.35,191.63,191.62,13.09]
[1722249689192,76.35,191.63,191.6,7.84393627]
[1722249689509,76.35,191.63,191.58,5.44877799]
[1722249689510,1.30481676,191.62,191.58,13.09]
[1722249690190,1.30481676,191.62,191.59,13.09]
[1722249690893,82.5076,191.63,191.6,13.09]
[1722249691091,31.35,191.63,191.57,7.84541826]
[1722249691291,31.35,191.61,191.6,13.09]
[1722249691505,31.35,191.61,191.52,10.17775716]
[1722249691506,76.35,191.61,191.53,7.84541826]
[1722249691705,31.35,191.61,191.59,13.09]